bitfinex/quotes_ETHUSD_20240828
["timestamp","ask_amount","ask_price","bid_price","bid_amount"]
[1724870915859,2.273,2524.0,2523.6,3.96256]
[1724870916375,2.33141797,2524.0,2523.6,3.96256]
[1724870917285,2.33141797,2524.0,2523.4,3.9628]
[1724870917286,6.29349797,2524.0,2523.4,3.9628]
[1724870917609,3.96212,2523.9,2523.3,3.96305]
[1724870917782,0.05841797,2523.8,2523.3,3.96305]
[1724870918199,4.02080797,2523.8,2523.3,3.96305]
[1724870918415,2.3161,2523.6,2523.2,7.41]
[1724870918567,3.96275,2523.5,2523.2,7.41]
[1724870918772,6.33710797,2523.6,2523.2,7.41]
[1724870919280,3.96251,2523.7,2523.2,7.41]
[1724870919483,7.98345797,2523.7,2523.2,11.37313]
[1724870919884,5.05088377,2523.7,2523.2,15.33626]
[1724870920105,4.02092797,2523.7,2523.3,3.96305]
[1724870920336,4.02092797,2523.7,2523.2,15.33627]
[1724870920553,3.96251,2523.7,2523.2,11.37313]
[1724870920831,0.05841797,2523.8,2523.2,11.37313]
[1724870920832,6.27831,2523.9,2523.3,4.04221728]
[1724870921137,2.3161,2523.9,2523.5,3.96267]
[1724870922439,2.3161,2523.9,2523.6,0.12959768]
[1724870922440,0.05841797,2523.8,2523.6,0.12959768]
[1724870922588,0.05841797,2523.8,2523.2,15.33625]
[1724870922589,4.65450677,2523.8,2523.2,15.33625]
[1724870922889,6.27827,2523.9,2523.4,3.96281]
[1724870923085,6.27827,2523.9,2523.5,3.96273]
[1724870923284,2.3161,2523.9,2523.6,3.96255]
[1724870923527,8.39650111,2524.1,2523.6,3.96255]
[1724870923697,3.96213,2523.9,2523.5,3.96265]
[1724870923895,2.3676,2523.8,2523.3,3.96293]
[1724870924125,6.33001,2523.8,2523.3,3.96293]
[1724870924332,6.38842797,2523.8,2523.3,3.96293]
[1724870924499,3.96243,2523.7,2523.3,3.96293]
[1724870924702,4.02084797,2523.7,2523.3,3.96293]
[1724870924889,4.02084797,2523.7,2523.2,7.41]
[1724870924890,5.12643627,2523.7,2523.2,7.41]
[1724870925088,2.2778,2523.6,2523.2,7.41]
[1724870925301,3.96291,2523.4,2523.2,7.41]
[1724870925605,4.02117797,2523.5,2523.0,3.96351]
[1724870925807,0.05841797,2523.5,2523.1,3.9633]
[1724870926001,6.29880797,2523.6,2523.1,3.9633]
[1724870927024,3.96276,2523.5,2523.0,3.96344]
[1724870927225,0.05841797,2523.4,2523.0,3.96344]
[1724870927438,4.02117797,2523.5,2523.1,3.96336]
[1724870927738,7.36638022,2523.6,2523.1,3.96336]
[1724870929644,2.66504455,2523.8,2523.2,0.07926067]
[1724870929951,2.66504455,2523.8,2523.5,3.96266]
[1724870930511,6.62732455,2523.8,2523.2,3.96313]
[1724870930728,0.05841797,2523.7,2523.2,3.96313]
[1724870930931,3.96262,2523.6,2523.1,3.96325]
[1724870931152,4.02116797,2523.5,2523.1,3.96325]
[1724870931333,2.2507,2523.4,2523.0,3.96344]
[1724870931826,2.2507,2523.4,2523.1,3.96335]
[1724870932028,0.05841797,2523.5,2523.2,3.96321]
[1724870932307,4.02103797,2523.6,2523.2,3.96321]
[1724870932612,1.19012265,2523.6,2523.2,3.96321]
[1724870932812,2.2507,2523.5,2523.1,3.96337]
[1724870933141,2.2507,2523.5,2523.2,3.96317]
[1724870933908,3.96247,2523.7,2523.4,3.96281]
[1724870933909,2.3858,2523.7,2523.4,3.96281]
[1724870934210,0.41434455,2523.8,2523.4,3.96281]
[1724870934749,0.41434455,2523.8,2523.4,7.92559]
[1724870934925,0.41434455,2523.8,2523.5,3.96272]
[1724870935124,0.41434455,2523.8,2523.6,3.96259]
[1724870935460,2.3219,2524.3,2523.9,3.96209]
[1724870935607,2.73631833,2524.3,2523.9,3.96203]
[1724870936055,3.96189,2524.1,2523.6,7.41]
[1724870936356,2.3646,2523.9,2523.6,7.41]
[1724870937110,3.0030988,2523.9,2523.6,7.41]
[1724870937311,3.0030988,2523.9,2523.7,0.1297424]
[1724870937538,2.3646,2523.9,2523.7,0.1297424]
[1724870937755,2.3646,2523.9,2523.7,4.0921424]
[1724870937922,2.3646,2523.9,2523.7,0.1297424]
[1724870940855,2.3646,2523.9,2523.7,4.0921724]
[1724870941855,2.3646,2523.9,2523.7,0.1297424]
[1724870942057,3.0030838,2523.9,2523.5,3.96261]
[1724870942216,3.06150177,2523.9,2523.8,0.12931433]
[1724870942426,6.32099,2523.8,2523.3,7.41]
[1724870942617,3.39454225,2523.8,2523.3,3.96298]
[1724870942840,3.39454225,2523.8,2523.4,3.96282]
[1724870943170,2.3586,2523.8,2523.3,3.96304]
[1724870943322,2.3586,2523.8,2523.4,3.96275]
[1724870943727,2.3586,2523.8,2523.3,3.96304]
[1724870943728,2.3586,2523.8,2523.5,3.96271]
[1724870944244,3.2965058,2523.8,2523.5,3.96271]
[1724870944422,7.2588058,2523.8,2523.3,3.96297]
[1724870944620,2.4152,2523.6,2523.0,7.41]
[1724870944932,2.4152,2523.6,2523.0,3.96341]
[1724870944933,0.05841797,2523.5,2523.0,3.96341]
[1724870945136,6.3778,2523.6,2523.0,3.96341]
[1724870945137,6.43621797,2523.6,2523.1,3.96336]
[1724870945461,2.47361797,2523.6,2523.2,3.96321]
[1724870945659,3.51347877,2523.6,2523.2,3.96321]
[1724870945994,7.47607877,2523.6,2523.2,3.96321]
[1724870946264,7.47607877,2523.6,2522.7,7.41]
[1724870946265,2.4152,2523.5,2522.7,7.41]
[1724870946438,3.22122585,2523.5,2523.1,3.96335]
[1724870946627,3.96293,2523.4,2522.9,3.96361]
[1724870946823,0.05841797,2523.3,2522.9,3.96361]
[1724870947058,0.05841797,2523.3,2522.9,3.9636]
[1724870947226,0.05841797,2523.3,2523.0,3.96353]
[1724870947424,2.4152,2523.5,2523.3,3.96305]
[1724870947622,2.52171797,2523.8,2523.5,3.96274]
[1724870947822,2.52171797,2523.8,2523.3,7.92589]
[1724870947823,2.4633,2523.8,2523.3,7.92589]
[1724870948250,2.4633,2523.8,2523.5,3.96274]
[1724870948565,2.4633,2523.8,2523.4,3.9629]
[1724870948863,2.70963,2523.8,2523.4,3.9629]
[1724870949228,2.70963,2523.8,2523.5,3.96272]
[1724870949430,2.4633,2523.8,2523.5,3.96272]
[1724870950778,2.4633,2523.8,2523.5,3.96266]
[1724870951864,0.41443269,2523.9,2523.6,3.96259]
[1724870952060,0.41443269,2523.9,2523.7,3.9623]
[1724870952260,0.41443269,2523.9,2523.8,0.12945539]
[1724870952682,0.41443269,2523.9,2523.6,3.9625]
[1724870952862,0.41443269,2523.9,2523.8,0.12945539]
[1724870953065,1.09543876,2523.9,2523.4,3.96278]
[1724870953394,2.53431797,2523.8,2523.5,0.1297992]
[1724870954173,2.4759,2523.8,2523.5,0.1297992]
[1724870954491,2.4759,2523.8,2523.6,3.96249]
[1724870954889,2.4759,2523.8,2523.7,0.12955431]
[1724870955758,0.41443269,2523.9,2523.7,4.09198431]
[1724870955958,0.41443269,2523.9,2523.8,8.00378273]
[1724870956290,2.2878,2524.3,2524.0,3.96188]
[1724870956655,2.2878,2524.3,2524.1,0.12906466]
[1724870957553,0.41441965,2524.4,2524.1,0.12906466]
[1724870958070,0.41441965,2524.4,2524.1,4.09083466]
[1724870958713,0.41441965,2524.4,2524.3,3.96149]
[1724870958998,2.2765,2524.8,2524.5,3.96118]
[1724870959208,2.2765,2524.8,2524.6,0.12826692]
[1724870959565,2.2765,2524.8,2524.6,4.08925692]
[1724870959793,2.2765,2524.8,2524.6,0.12826692]
[1724870960090,2.2765,2524.8,2524.4,3.96121]
[1724870960285,2.2765,2524.8,2524.7,0.12770658]
[1724870960510,3.96087,2524.7,2524.2,11.37153]
[1724870960801,0.05841797,2524.6,2524.2,11.37153]
[1724870961545,4.01928797,2524.7,2524.2,11.37153]
[1724870961863,4.01928797,2524.7,2524.2,15.33307]
[1724870962064,4.65947351,2524.7,2524.2,11.37153]
[1724870963397,4.65947351,2524.7,2524.2,15.3331]
[1724870963781,6.29562797,2524.8,2524.4,3.96132]
[1724870963995,0.05841797,2524.7,2524.4,3.96132]
[1724870964325,0.05841797,2524.7,2524.3,3.96143]
[1724870964627,2.2765,2524.8,2524.4,4.04053297]
[1724870964908,2.3539,2525.0,2524.6,3.96093]
[1724870965109,2.3539,2525.0,2524.6,7.92183]
[1724870965269,2.3539,2525.0,2524.6,3.9609]
[1724870965477,2.70710177,2525.2,2524.5,3.3958348]
[1724870965784,2.2927,2525.2,2524.9,3.96047]
[1724870966309,2.4674,2525.4,2525.0,3.96031]
[1724870967193,2.4674,2525.4,2525.1,0.12718314]
[1724870967382,3.110113,2525.4,2525.1,0.12718314]
[1724870968723,2.4674,2525.4,2525.3,3.95992]
[1724870968878,2.48081797,2525.7,2525.3,3.95992]
[1724870969221,2.48081797,2525.7,2525.4,0.1268227]
[1724870969388,0.5480818,2525.6,2525.4,0.1268227]
[1724870969713,0.05841797,2525.5,2525.1,3.96022]
[1724870970221,2.4224,2525.7,2525.3,3.95989]
[1724870970423,2.4224,2525.7,2525.5,3.95953]
[1724870970624,2.4224,2526.0,2525.5,3.95953]
[1724870970840,2.818276,2526.0,2525.7,3.95928]
[1724870971322,2.4224,2526.0,2525.8,0.12582126]
[1724870971819,2.4224,2526.0,2525.9,0.12556457]
[1724870972131,2.4224,2526.0,2525.7,3.95928]
[1724870972327,2.4224,2526.0,2525.9,0.1255603]
[1724870972479,2.4224,2526.0,2525.8,4.08480039]
[1724870973427,3.95846,2526.3,2526.1,3.95865]
[1724870973428,2.3609,2526.3,2526.1,3.95865]
[1724870973594,2.3609,2526.6,2526.1,3.95865]
[1724870973913,2.3609,2526.6,2526.2,4.08350619]
[1724870973914,3.05119097,2526.6,2526.2,4.08350619]
[1724870974271,3.05119097,2526.6,2526.2,0.12510619]
[1724870974692,3.95812,2526.5,2526.2,0.12510619]
[1724870974917,3.95812,2526.5,2525.7,11.3692]
[1724870974918,3.95835,2526.3,2525.8,3.95912]
[1724870975102,2.41931797,2526.2,2525.8,3.95912]
[1724870975324,2.41931797,2526.2,2525.7,11.36914]
[1724870975325,2.41931797,2526.2,2525.7,7.41]
[1724870975491,2.3609,2526.2,2525.7,7.41]
[1724870975676,2.3609,2526.2,2525.9,3.95893]
[1724870976299,0.05841797,2526.4,2525.9,3.95893]
[1724870976658,2.3609,2526.4,2526.1,3.95858]
[1724870977139,2.3609,2526.4,2526.1,3.95857]
[1724870977854,6.25462,2526.7,2526.2,3.95839]
[1724870978355,6.25462,2526.7,2526.1,3.95857]
[1724870978522,6.25462,2526.7,2526.1,4.03773313]
[1724870979423,2.2968,2526.7,2526.2,1.69477331]
[1724870979807,4.01591797,2526.9,2526.5,3.95804]
[1724870980036,2.2968,2527.0,2526.5,3.95804]
[1724870980243,2.2968,2527.0,2526.6,0.395804]
[1724870980515,6.25407,2527.0,2526.5,7.91586]
[1724870980852,6.31248797,2527.0,2526.5,3.95791]
[1724870981277,6.31248797,2527.0,2526.3,3.95825]
[1724870981278,3.9575,2526.9,2526.3,7.91651]
[1724870981423,6.41439,2526.6,2526.2,3.9585]
[1724870981642,2.4565,2526.6,2526.2,3.95842]
[1724870982050,2.4565,2526.6,2526.0,23.54872]
[1724870982051,0.05841797,2526.5,2526.3,0.12371908]
[1724870982245,3.9582,2526.4,2526.3,0.12371908]
[1724870982465,3.9582,2526.4,2526.3,0.12372334]
[1724870982466,5.0013248,2526.4,2526.3,0.12372334]
[1724870982676,3.9582,2526.4,2525.9,3.95894]
[1724870983079,4.01650797,2526.5,2526.0,4.08286353]
[1724870983247,4.01650797,2526.5,2526.0,4.88704388]
[1724870983446,3.9582,2526.4,2526.0,0.12408353]
[1724870983653,7.91648,2526.4,2526.0,0.12408353]
[1724870983858,7.9165,2526.4,2526.0,0.12408353]
[1724870984282,7.91649,2526.4,2526.0,0.12408353]
[1724870984767,3.9582,2526.4,2526.0,0.12408353]
[1724870985177,0.05841797,2526.5,2526.0,4.08289353]
[1724870985569,0.05841797,2526.5,2526.0,0.12408353]
[1724870985794,0.70570677,2526.5,2526.0,0.12408353]
[1724870986275,3.95822,2526.4,2526.0,0.12408353]
[1724870987959,2.40931797,2526.3,2526.0,0.12408353]
[1724870988072,3.95852,2526.2,2526.0,0.12408353]
[1724870988273,3.95852,2526.2,2525.7,3.9592]
[1724870988487,2.3509,2525.9,2525.3,2.4133]
[1724870988700,6.3097,2526.1,2525.5,3.95946]
[1724870988896,2.3509,2526.1,2525.6,0.92896333]
[1724870989111,3.95844,2526.3,2525.6,0.12456391]
[1724870989413,6.30918,2526.4,2525.9,3.95896]
[1724870989584,2.3509,2526.4,2525.9,3.9589]
[1724870989785,2.3509,2526.4,2526.0,4.0831338]
[1724870990137,2.3509,2526.4,2526.1,3.95858]
[1724870990291,4.01635797,2526.6,2526.3,3.95833]
[1724870990292,2.3509,2526.6,2526.3,3.95833]
[1724870990480,2.3509,2526.6,2526.4,0.12383784]
[1724870990679,0.41432773,2526.5,2526.1,4.45599782]
[1724870990880,0.41432773,2526.5,2526.2,4.08256793]
[1724870992278,0.41432773,2526.5,2526.2,8.97607556]
[1724870992477,0.41432773,2526.5,2526.2,4.08249793]
[1724870992890,0.41432773,2526.5,2526.2,4.08247793]
[1724870993415,0.41432773,2526.5,2526.2,8.04090793]
[1724870993588,0.41432773,2526.5,2526.2,4.08247793]
[1724870993786,0.41432773,2526.5,2526.2,4.93633951]
[1724870994117,0.41432773,2526.5,2526.4,3.9582]
[1724870994318,0.41432773,2526.5,2526.4,4.08203784]
[1724870994815,0.41432773,2526.5,2526.4,0.12383784]
[1724870997888,0.41432773,2526.5,2526.4,4.08203784]
[1724870998217,0.41432773,2526.5,2526.4,4.94108262]
[1724870998422,0.41432773,2526.5,2526.4,4.08203784]
[1724870998584,0.41432773,2526.5,2526.4,0.12383784]
[1724871000385,10.71320773,2526.5,2526.4,0.12383784]
[1724871000792,3.95832,2526.4,2525.9,3.95886]
[1724871001018,4.01673797,2526.4,2525.9,3.95886]
[1724871001203,3.95832,2526.4,2525.9,3.95886]
[1724871001386,6.75516773,2526.5,2525.8,7.91804]
[1724871001586,4.01669797,2526.4,2525.9,3.9589]
[1724871002008,3.95828,2526.4,2525.9,3.9589]
[1724871002419,4.01669797,2526.4,2525.9,3.9589]
[1724871003098,0.41432773,2526.5,2526.2,3.95845]
[1724871003297,0.41432773,2526.5,2525.9,4.750757]
[1724871003298,0.41432773,2526.5,2526.3,4.03747702]
[1724871003596,0.41432773,2526.5,2526.4,3.9582]
[1724871004599,0.41432773,2526.5,2526.4,7.9164]
[1724871004807,0.41432773,2526.5,2526.4,11.8622348]
[1724871005039,0.41432773,2526.5,2526.4,18.2224348]
[1724871005343,2.3828,2527.5,2527.1,3.95708]
[1724871005634,0.41432182,2527.4,2527.3,3.95667]
[1724871005805,0.41432182,2527.4,2527.2,4.03606349]
[1724871006005,0.41432182,2527.4,2527.2,3.95693]
[1724871006232,2.79712182,2527.4,2527.0,3.95715]
[1724871006393,2.79712182,2527.4,2527.0,9.0906107]
[1724871006594,2.79712182,2527.4,2527.0,9.0905907]
[1724871006826,2.79712182,2527.4,2527.1,3.95709]
[1724871007140,2.79712182,2527.4,2527.2,3.95694]
[1724871007441,2.79712182,2527.4,2527.1,0.90905307]
[1724871007640,0.41432182,2527.4,2527.2,3.95684]
[1724871007939,0.41432182,2527.4,2527.2,7.91368]
[1724871008238,0.41432182,2527.4,2527.2,3.95684]
[1724871008395,0.41432182,2527.4,2527.0,9.0906407]
[1724871008599,0.41432182,2527.4,2526.8,7.41]
[1724871008600,2.3967,2527.3,2526.8,7.41]
[1724871009316,2.3967,2527.3,2527.0,3.95712]
[1724871009503,0.41432182,2527.4,2527.0,3.95712]
[1724871009701,0.41432182,2527.4,2527.0,4.352832]
[1724871010448,2.52841797,2527.3,2526.6,26.54777]
[1724871010746,2.52841797,2527.3,2526.2,5.6680348]
[1724871010747,2.47,2527.1,2526.2,7.41]
[1724871010900,6.48564797,2527.1,2526.5,3.95793]
[1724871011245,2.47,2527.1,2526.5,0.84829935]
[1724871011447,2.47,2527.1,2526.7,3.95763]
[1724871011660,6.42711,2527.1,2526.5,7.91588]
[1724871011937,2.47,2527.1,2526.6,3.95778]
[1724871012136,2.47,2527.1,2526.7,0.12326458]
[1724871013208,2.4594,2526.8,2526.3,3.95825]
[1724871013411,2.4594,2526.8,2526.3,7.91652]
[1724871013616,2.4594,2526.8,2526.4,3.95815]
[1724871013816,2.4594,2526.8,2526.5,3.95803]
[1724871014005,2.4594,2527.2,2526.7,3.95773]
[1724871014538,2.4594,2527.2,2526.7,3.95762]
[1724871014740,0.9474618,2527.1,2526.8,3.95755]
[1724871015107,0.9474618,2527.1,2526.7,3.95762]
[1724871015443,0.9474618,2527.1,2526.8,3.95754]
[1724871015824,2.4594,2527.2,2526.8,3.95754]
[1724871016201,2.4594,2527.2,2526.7,3.95762]
[1724871016202,0.41432182,2527.4,2526.9,3.95741]
[1724871016445,0.41432182,2527.4,2526.7,2.2786]
[1724871016446,0.41432182,2527.4,2527.2,3.95685]
[1724871018045,0.41432182,2527.4,2527.1,3.95709]
[1724871018540,0.41432182,2527.4,2526.9,3.95727]
[1724871018754,6.41619,2527.3,2526.8,7.91498]
[1724871018900,6.41619,2527.3,2526.8,3.95747]
[1724871019105,2.4594,2527.1,2526.7,3.95772]
[1724871019505,6.41653,2527.1,2526.6,3.95777]
[1724871019705,0.05841797,2527.0,2526.6,3.95787]
[1724871019907,0.05841797,2527.0,2526.5,7.41]
[1724871020104,2.4594,2526.9,2526.5,7.41]
[1724871020559,6.41681,2526.9,2526.2,3.95842]
[1724871020862,6.41722,2526.7,2526.1,11.36867]
[1724871021039,3.95806,2526.5,2525.8,3.95904]
[1724871021242,3.95806,2526.5,2526.0,3.95874]
[1724871022323,2.4594,2526.6,2526.0,3.95874]
[1724871022524,2.4594,2526.6,2526.3,3.95833]
[1724871023136,2.4594,2526.6,2526.1,3.95857]
[1724871023312,2.4594,2526.6,2526.1,7.91715]
[1724871023647,2.4594,2526.6,2526.2,3.95842]
[1724871024147,2.4594,2526.6,2526.2,3.9585]
[1724871025005,4.01645797,2526.5,2525.9,3.95888]
[1724871025245,2.4624,2526.3,2525.8,3.95898]
[1724871025422,2.4624,2526.3,2525.9,3.95898]
[1724871026217,6.42076,2526.3,2525.7,7.91836]
[1724871026436,6.42076,2526.3,2525.7,3.95914]
[1724871026823,6.42076,2526.3,2525.9,3.95897]
[1724871027153,6.42076,2526.3,2526.0,0.12380643]
[1724871027523,2.4624,2526.3,2526.0,0.12380643]
[1724871027729,2.4624,2526.4,2526.0,3.95882]
[1724871028121,2.4624,2526.4,2526.1,0.12368636]
[1724871028323,3.95851,2526.2,2526.1,0.12368636]
[1724871028532,3.95869,2526.1,2525.6,11.36935]
[1724871028748,7.27706977,2526.1,2525.6,7.41]
[1724871029067,7.27706977,2526.1,2525.7,0.1241667]
[1724871029068,6.47950797,2526.1,2525.7,0.1241667]
[1724871029386,6.42154,2525.8,2525.7,0.1241667]
[1724871029555,6.47995797,2525.8,2525.7,0.1241667]
[1724871029853,7.52386477,2525.8,2525.3,11.36991]
[1724871030024,6.47995797,2525.8,2525.7,0.12452487]
[1724871030353,2.52081797,2525.8,2525.7,0.12452487]
[1724871030524,2.52081797,2525.8,2525.3,11.36991]
[1724871030723,2.52081797,2525.8,2525.4,0.12488523]
[1724871030952,6.42201,2525.5,2525.4,0.12488523]
[1724871031157,6.42201,2525.5,2524.6,11.37093]
[1724871031158,3.95985,2525.4,2524.8,3.9606]
[1724871031454,0.05841797,2525.3,2524.9,0.12548601]
[1724871031752,4.01826797,2525.4,2524.9,0.12548601]
[1724871031915,2.4624,2525.2,2524.9,0.12548601]
[1724871032111,2.4624,2525.2,2524.7,3.96085]
[1724871032314,2.4624,2525.2,2524.8,0.17535972]
[1724871032746,2.4624,2525.2,2524.8,4.13602972]
[1724871033191,2.4624,2525.2,2524.8,8.09663972]
[1724871033526,2.4624,2525.2,2524.9,3.96055]
[1724871033726,2.4624,2525.2,2525.0,0.17511542]
[1724871034166,2.4624,2525.2,2524.8,3.96061]
[1724871034369,2.4624,2525.2,2524.9,0.17523757]
[1724871035722,2.4624,2525.2,2524.9,4.13576757]
[1724871035922,2.4624,2525.2,2524.9,0.17523757]
[1724871036343,0.41446337,2525.1,2524.7,3.96082]
[1724871036551,0.41446337,2525.1,2524.8,0.17535972]
[1724871038966,0.41446337,2525.1,2524.8,4.13604972]
[1724871039167,0.41446337,2525.1,2524.8,4.13598972]
[1724871039368,0.41446337,2525.1,2524.8,4.13594972]
[1724871039695,0.41446337,2525.1,2524.9,3.96053]
[1724871040102,0.41446337,2525.1,2525.0,0.17511542]
[1724871044157,0.41446337,2525.1,2525.0,12.05628542]
[1724871044364,2.3392,2525.8,2525.1,6.21852]
[1724871044557,0.41441956,2525.9,2525.7,3.95929]
[1724871044888,0.41441956,2525.9,2525.4,3.95975]
[1724871044889,0.41441956,2525.9,2525.8,8.09350637]
[1724871045430,2.3392,2526.2,2525.9,3.95893]
[1724871045556,0.41444512,2526.5,2526.1,3.95867]
[1724871045756,0.41444512,2526.5,2526.3,3.95835]
[1724871045951,0.41444512,2526.5,2526.4,0.17437467]
[1724871047870,6.84448512,2526.5,2526.4,0.17437467]
[1724871048075,10.80252512,2526.5,2526.4,0.17437467]
[1724871048271,3.95827,2526.4,2525.8,11.36904]
[1724871048582,0.05841797,2526.3,2525.8,7.41]
[1724871048786,0.05841797,2526.4,2525.9,3.95897]
[1724871049000,6.84448512,2526.5,2526.0,4.50872]
[1724871049001,2.88644512,2526.5,2526.0,4.50872]
[1724871049296,2.88644512,2526.5,2526.0,8.46741]
[1724871049501,2.88644512,2526.5,2526.1,3.95866]
[1724871050354,2.88644512,2526.5,2526.0,8.46739]
[1724871050559,0.05841797,2526.4,2525.8,11.36902]
[1724871051011,0.05841797,2526.4,2525.8,15.32807]
[1724871051293,4.01663797,2526.4,2525.8,11.36902]
[1724871051854,3.95837,2526.3,2525.8,11.36902]
[1724871052057,3.95854,2526.2,2525.8,7.41]
[1724871052288,6.25867,2526.1,2525.8,7.41]
[1724871052562,4.01724797,2526.0,2525.8,7.41]
[1724871052783,0.05841797,2526.0,2525.8,7.41]
[1724871052975,0.05841797,2526.2,2525.8,7.41]
[1724871053179,0.05841797,2526.2,2525.8,11.36913]
[1724871053707,0.05841797,2526.2,2525.8,7.41]
[1724871054013,6.40412,2526.4,2525.8,15.32818]
[1724871054159,0.05841797,2526.3,2525.9,3.9589]
[1724871055288,2.79035248,2526.4,2525.9,3.9589]
[1724871056460,6.74858248,2526.4,2525.9,3.9589]
[1724871057093,2.2801,2526.2,2525.8,11.36905]
[1724871057309,2.2801,2526.2,2526.0,0.17417162]
[1724871057601,2.2801,2526.2,2525.8,11.36905]
[1724871057805,2.2801,2526.2,2525.9,3.95897]
[1724871058660,2.2801,2526.2,2526.1,3.95867]
[1724871058859,0.41444512,2526.5,2526.1,3.95867]
[1724871058860,0.47286309,2526.5,2526.1,3.95867]
[1724871060601,0.47286309,2526.5,2526.1,3.95856]
[1724871061008,0.41444512,2526.5,2526.3,3.95828]
[1724871061561,0.41444512,2526.5,2526.3,7.91656]
[1724871061758,0.41444512,2526.5,2526.3,3.95828]
[1724871061994,0.41444512,2526.5,2526.3,4.749943]
[1724871062206,2.4689,2526.8,2526.5,3.95797]
[1724871062361,2.4689,2526.8,2525.8,11.76642]
[1724871062362,0.41448471,2527.0,2526.6,3.95778]
[1724871062806,0.41448471,2527.0,2526.7,3.95769]
[1724871063179,2.3537,2527.4,2526.8,0.07914795]
[1724871063377,0.41449845,2527.6,2527.4,3.95662]
[1724871063618,2.2669,2528.1,2527.7,3.95613]
[1724871064413,3.95586,2527.9,2527.3,7.9134]
[1724871064625,0.05841797,2527.8,2527.1,3.95704]
[1724871064794,4.01427797,2527.9,2527.3,3.95668]
[1724871065118,0.22669,2528.0,2527.4,3.95653]
[1724871065425,4.36973593,2528.3,2527.3,3.95668]
[1724871065426,0.41444593,2528.3,2527.9,3.95575]
[1724871065630,0.41444593,2528.3,2527.5,11.91641]
[1724871065777,4.45669336,2528.2,2527.6,3.95629]
[1724871066118,4.45669336,2528.2,2527.5,15.87279]
[1724871066299,4.45669336,2528.2,2527.5,11.91638]
[1724871066484,4.45669336,2528.2,2527.5,14.36635608]
[1724871066675,4.01389797,2528.2,2527.5,14.36635608]
[1724871067478,0.05841797,2528.2,2527.5,14.36635608]
[1724871067679,0.41444593,2528.3,2527.7,3.9561]
[1724871068718,3.95547,2528.2,2527.6,0.07911242]
[1724871068881,2.3677,2528.1,2527.6,3.95629]
[1724871069215,2.3677,2528.1,2527.5,14.36634608]
[1724871069524,0.05841797,2528.0,2527.5,7.41]
[1724871069819,3.95602,2527.8,2527.5,7.41]
[1724871069989,2.40991797,2527.7,2527.5,7.41]
[1724871070181,2.40991797,2527.7,2527.1,9.615494]
[1724871070380,2.40991797,2527.7,2527.2,3.95693]
[1724871070617,6.36607797,2527.7,2527.1,3.957]
[1724871071026,6.30766,2527.7,2527.1,7.914]
[1724871071342,2.3515,2527.7,2527.2,1.5324]
[1724871071518,2.3515,2527.7,2527.2,5.48925]
[1724871071989,6.36608797,2527.7,2527.2,5.48933]
[1724871072183,2.3515,2527.7,2527.3,5.07272188]
[1724871072636,2.3515,2527.7,2527.3,9.02949188]
[1724871072789,2.3515,2527.7,2527.3,5.07264188]
[1724871073122,2.3515,2527.7,2527.3,4.12800988]
[1724871073338,6.72124593,2528.3,2527.3,2.47681988]
[1724871073485,10.67655593,2528.3,2527.6,3.95621]
[1724871073831,0.05841797,2528.2,2527.7,4.12702488]
[1724871074230,10.67657593,2528.3,2527.7,0.24998983]
[1724871074386,10.67657593,2528.3,2527.7,0.17087488]
[1724871074387,0.73054256,2528.2,2527.7,0.17087488]
[1724871075590,3.95554,2528.1,2527.7,0.17087488]
[1724871076623,3.95554,2528.1,2527.3,7.41]
[1724871076624,3.95599,2527.9,2527.3,7.41]
[1724871076946,0.05841797,2527.8,2527.3,11.36676]
[1724871077291,0.05841797,2527.8,2527.3,12.899117]
[1724871077610,4.01445797,2527.8,2527.3,7.41]
[1724871077784,2.425,2527.6,2527.2,3.95681]
[1724871077985,0.05841797,2527.7,2527.2,3.95681]
[1724871078237,4.01445797,2527.8,2527.3,3.9567]
[1724871078403,0.05841797,2527.7,2527.2,3.95681]
[1724871078632,3.95674,2527.4,2526.7,12.18]
[1724871078928,3.3958348,2527.6,2527.0,3.95723]
[1724871078929,2.53491797,2527.5,2527.0,3.95723]
[1724871079134,2.4765,2527.5,2527.2,3.9568]
[1724871079352,0.41448103,2527.3,2527.2,7.91374]
[1724871079637,2.4765,2527.8,2527.1,0.07913352]
[1724871079938,0.47286487,2527.7,2527.2,3.95685]
[1724871080100,4.01460797,2527.7,2527.2,3.95685]
[1724871080310,0.05841797,2527.7,2527.3,3.95674]
[1724871080491,4.01457797,2527.7,2527.2,3.95693]
[1724871080691,4.01457797,2527.7,2527.1,3.95708]
[1724871080692,7.97083797,2527.7,2527.1,3.95708]
[1724871081091,4.01457797,2527.7,2527.1,3.95701]
[1724871081292,4.01457797,2527.7,2527.1,4.352718]
[1724871081888,4.01457797,2527.7,2527.1,8.309738]
[1724871082579,4.01457797,2527.7,2527.1,4.352718]
[1724871082750,3.95633,2527.6,2527.1,7.91403]
[1724871082943,0.05841797,2527.7,2527.2,3.95692]
[1724871083749,4.01466797,2527.7,2527.1,3.95701]
[1724871084047,3.95643,2527.6,2527.1,3.95701]
[1724871084282,4.01484797,2527.6,2527.1,3.95701]
[1724871084487,4.01484797,2527.6,2526.7,3.95762]
[1724871084488,2.4045,2527.4,2526.7,3.95762]
[1724871084781,2.4045,2527.4,2526.6,7.41]
[1724871084782,2.4045,2527.0,2526.6,11.36784]
[1724871084940,2.4045,2527.0,2526.6,3.95784]
[1724871085138,0.05841797,2527.2,2526.9,3.95741]
[1724871085448,0.05841797,2527.2,2526.8,3.95757]
[1724871085649,0.05841797,2527.2,2526.7,3.95769]
[1724871086178,0.05841797,2527.2,2526.8,3.95754]
[1724871087091,0.05841797,2527.2,2526.9,3.9574]
[1724871087240,3.3958348,2527.6,2527.1,3.9571]
[1724871087241,6.24797,2527.6,2527.1,3.9571]
[1724871087442,3.9565,2527.5,2527.0,0.16606531]
[1724871087638,3.9565,2527.5,2526.6,11.36785]
[1724871087639,6.2484,2527.3,2527.2,0.16582144]
[1724871087877,6.2484,2527.3,2527.1,0.16594337]
[1724871087878,2.2916,2527.3,2527.1,0.16594337]